Cogmind - Beta 14 @@@ ROGUE MODE // 2024.09.02 @ 20:32:46 Player: OctagonalPrism Result: Destroyed by A-27 Freighter with PD Laser Performance ------------- Evolutions (5) 2500 Regions Visited (15) 3000 Robots Destroyed (208) 1040 Value Destroyed (8429) 8429 Prototype IDs (39) 780 Alien Tech Used (0) 0 Bonus (2629) 2629 TOTAL SCORE: 18378 Bonus ------- High Alert Combat Kills 1144 Follower Combat Kills 171 Entered Garrisons 200 Used RIF Installer 1000 Aligned with FarCom 300 Friendly Fire -186 Cogmind --------- Core Integrity 0/1000 Matter 221/300 Energy 98/100 System Corruption 9% Temperature Cool (12) Movement Core (50) Location -5/Factory Parts ------- > --- POWER (1) -------- (None) > --- PROPULSION (3) --- (None) > --- UTILITY (11) ----- Improved Target Analyzer Core Analyzer Improved Hacking Suite > --- WEAPON (2) ------- (None) > --- INVENTORY (5) ---- High-capacity Matter Pod (200) Long-range Proton Cannon Improved Remote Datajack Power Sword Power Sword Peak State ------------ > --- POWER ------------ Fission Core > --- PROPULSION ------- Light Treads Armored Treads Medium Treads > --- UTILITY ---------- Advanced Heat Sink Large Storage Unit Structural Scanner Enhanced Optical Array Improved Target Analyzer Core Analyzer Layered Light Armor Plating Improved Hacking Suite Improved System Shield > --- WEAPON ----------- YOLO Cannon > --- INVENTORY -------- Light Treads Light Treads Energy Well High-capacity Matter Pod EM Disruption Field Relay Coupler [NC] Heavy Missile Launcher Heavy Missile Launcher Remote Datajack Power Sword Power Sword [Rating: 71] Favorites ----------- Power Improved Ion Engine Engine Improved Ion Engine Power Core Fission Core Propulsion Light Treads Treads Light Treads Leg Flexi-carbon Leg Wheel Compact Wheel Utility Large Storage Unit Device Improved Heat Sink Storage Large Storage Unit Processor Core Analyzer Hackware Improved Hacking Suite Protection Light Armor Plating Weapon Particle Gun Energy Gun Particle Gun Energy Cannon Long-range Proton Cannon Ballistic Gun Enhanced Autogun Ballistic Cannon Improved Light Cannon Launcher Heavy Missile Launcher Special Weapon Remote Datajack Impact Weapon Flail Slashing Weapon Power Sword Build | -11 -10 -10 -9 -9 -9 -8 -8 -8 -7 -6 -6 -6 -6 -5 -5 ------- Run | Yrd Mat Min Mat Min Exi Min Mat Gar Fac Fac Low Low Zio Pro Fac Slots Evolved 10 | . . . 2 . . . 2 . 2 2 . . . . 2 Power . | . . . . . . . . . . . . . . . . Propulsion 1 | . . . . . . . . . . 1 . . . . . Utility 9 | . . . 2 . . . 2 . 2 1 . . . . 2 Weapon . | . . . . . . . . . . . . . . . . Parts Attached 183 | 7 13 . 12 . . . 19 28 38 23 5 6 . 9 23 Power 14 | 1 2 . 1 . . . 2 2 2 1 . 1 . . 2 Engine 10 | 1 2 . 1 . . . 2 2 1 . . . . . 1 Core 4 | . . . . . . . . . 1 1 . 1 . . 1 Reactor . | . . . . . . . . . . . . . . . . Propulsion 41 | 2 6 . 2 . . . 5 5 4 6 3 1 . 3 4 Treads 32 | 2 5 . 2 . . . 5 5 3 . 2 1 . 3 4 Leg 7 | . 1 . . . . . . . . 5 1 . . . . Wheel 2 | . . . . . . . . . 1 1 . . . . . Hover . | . . . . . . . . . . . . . . . . Flight . | . . . . . . . . . . . . . . . . Utility 54 | 1 2 . 6 . . . 5 6 19 9 . 1 . 1 4 Device 25 | . 1 . 1 . . . 2 3 10 5 . . . . 3 Storage 5 | 1 1 . 2 . . . . . 1 . . . . . . Processor 7 | . . . 1 . . . . . 4 2 . . . . . Hackware 3 | . . . . . . . . . . 2 . . . . 1 Protection 14 | . . . 2 . . . 3 3 4 . . 1 . 1 . Artifact . | . . . . . . . . . . . . . . . . Weapon 74 | 3 3 . 3 . . . 7 15 13 7 2 3 . 5 13 Energy Gun 13 | 2 2 . . . . . 3 3 1 . . 1 . . 1 Energy Cannon 8 | . . . . . . . . . 1 . . . . 2 5 Ballistic Gun 15 | 1 . . . . . . 1 4 2 5 1 1 . . . Ballistic Cannon 11 | . 1 . 2 . . . 2 . 4 . . . . . 2 Launcher 6 | . . . . . . . . 3 . . . . . 1 2 Special Weapon 1 | . . . . . . . . . 1 . . . . . . Impact Weapon 9 | . . . 1 . . . 1 3 4 . . . . . . Slashing Weapon 11 | . . . . . . . . 2 . 2 1 1 . 2 3 Piercing Weapon . | . . . . . . . . . . . . . . . . Special Melee Weapon . | . . . . . . . . . . . . . . . . Unidentified Prototypes 1 | . . . . . . . 1 . . . . . . . . Parts Lost 80 | . 7 . 1 . . . 7 12 20 3 1 3 1 6 19 Power 10 | . 2 . . . . . 1 2 1 . . 1 . 1 2 Propulsion 19 | . 3 . . . . . 2 2 3 . . . . 3 6 Utility 33 | . . . 1 . . . 3 6 12 1 1 . . 2 7 Weapon 18 | . 2 . . . . . 1 2 4 2 . 2 1 . 4 Highest Loss Streak 14 | . 4 . 1 . . . 2 5 14 2 1 2 1 4 13 To Critical Strikes 1 | . . . . . . . 1 . . . . . . . . Average Slot Usage (%) 87 | . 86 100 91 100 100 100 86 85 83 88 93 93 98 86 74 Engine 5 | . 6 14 11 11 11 11 8 8 3 . . . . . . Core 2 | . . . . . . . . . 1 6 6 6 6 4 4 Treads 14 | . 24 28 22 22 22 22 17 15 12 . 2 16 20 17 13 Leg 2 | . . . . . . . . . . 14 17 3 . . . Device 15 | . 13 14 11 11 11 11 12 20 19 13 13 13 13 11 9 Storage 8 | . 13 14 11 11 11 11 9 9 7 6 6 6 6 6 5 Processor 10 | . . . 8 11 11 11 9 1 11 18 20 20 20 20 16 Hackware 3 | . . . . . . . . . . 7 13 13 13 13 11 Protection 6 | . . . 5 11 11 11 12 11 9 6 . 2 6 4 . Energy Gun 5 | . 13 14 11 11 11 11 8 5 5 . . 1 4 . . Ballistic Gun 3 | . 3 . . . . . 1 8 2 3 11 5 . . . Ballistic Cannon 3 | . 8 14 10 11 11 11 7 . 3 3 . . . . 1 Slashing Weapon 1 | . . . . . . . . . . 4 1 3 6 4 2 Peak Build Rating 71 | 6 10 10 17 15 17 17 28 28 46 69 69 63 63 71 66 Average Rating 33 | 3 7 10 13 15 15 17 22 22 33 55 65 60 61 58 55 On Entrance 28 | . 6 10 10 15 15 17 17 28 23 24 69 63 63 58 43 Naked Turns . | . . . . . . . . . . . . . . . . Heaviest Build 62 | 14 18 18 38 38 38 38 50 50 62 45 42 45 45 54 57 Greatest Support 74 | 40 40 40 40 40 40 40 42 42 43 56 56 68 68 71 74 Greatest Overweight (x) 12 | . 2 . . . . . 2 1 12 2 1 . . 2 2 Average Overweight (x) . | . . . . . . . . . . . . . . . . Largest Inventory Capacity 15 | 8 8 8 15 15 15 15 15 15 15 15 15 15 15 15 15 Average Capacity 13 | 7 7 8 10 15 15 15 15 15 15 15 15 15 15 15 14 Most Carried 15 | 3 7 7 10 10 12 12 13 14 15 15 15 15 12 14 13 Average Carried 10 | . 5 6 8 10 10 12 10 10 11 11 14 13 12 12 12 Final Capacity 15 | 8 8 8 15 15 15 15 15 15 15 15 15 15 15 15 5 Final Carried 15 | 1 6 7 10 10 12 12 13 10 8 15 15 12 12 12 5 Class Distribution -------------------- 34% | Mutant 33% | Scavenger-Mutant 16% | Hacker-Mutant 4% | Hacker-Assassin 3% | Assassin 3% | Scavenger-Assassin Dominant Class ---------------- Mutant | -10/Materials Mutant | -10/Mines Mutant | -9/Materials Scavenger-Mutant | -9/Mines Scavenger-Mutant | -9/Exiles Scavenger-Mutant | -8/Mines Mutant | -8/Materials Scavenger-Mutant | -8/Garrison Mutant | -7/Factory Hacker-Assassin | -6/Factory Hacker-Mutant | -6/Lower Caves Hacker-Mutant | -6/Lower Caves Hacker-Mutant | -6/Zion Hacker-Mutant | -5/Proximity Caves Scavenger-Assassin | -5/Factory Resources | -11 -10 -10 -9 -9 -9 -8 -8 -8 -7 -6 -6 -6 -6 -5 -5 ----------- Run | Yrd Mat Min Mat Min Exi Min Mat Gar Fac Fac Low Low Zio Pro Fac Matter Collected 4976 | 229 350 187 371 . . . 416 1036 1175 305 275 137 13 72 410 Remotely . | . . . . . . . . . . . . . . . . Salvage Created 7154 | . 511 80 918 . . 42 803 914 1221 334 225 337 . 1005 764 Parts 412 | . 45 2 73 . . 1 55 71 53 27 15 13 . 28 29 Haulers Intercepted 9 | . 1 . 3 . . . 3 . 1 . . . . . 1 Recyclers Shooed 4 | . . . . . . . 2 . 1 . . . . . 1 Parts Field Recycled . | . . . . . . . . . . . . . . . . Retrieved Matter . | . . . . . . . . . . . . . . . . Parts Self-Destructed 53 | . . . . . . . . . . . 9 19 . 25 . Prevented . | . . . . . . . . . . . . . . . . Kills | -11 -10 -10 -9 -9 -9 -8 -8 -8 -7 -6 -6 -6 -6 -5 -5 ------- Run | Yrd Mat Min Mat Min Exi Min Mat Gar Fac Fac Low Low Zio Pro Fac Combat Hostiles Destroyed 164 | . 16 2 25 . . 1 17 30 22 5 6 7 . 15 18 Melee 11 | . . . 1 . . . . . . 3 1 3 . 2 1 Guns 73 | . 14 1 10 . . 1 7 20 12 . 5 3 . . . Cannons 50 | . 2 1 14 . . . 10 . 10 2 . . . 3 8 AOE 27 | . . . . . . . . 10 . . . . . 8 9 Classes Destroyed 18 | . 5 . 4 . . . 3 2 1 . 1 . . 2 . Worker 4 | . . . 1 . . . 2 . 1 . . . . . . Builder 8 | . . . . . . . 1 . 2 1 . . . . 4 Hauler 9 | . 1 . 3 . . . 3 . 1 . . . . . 1 Recycler 6 | . . . . . . . 1 . 5 . . . . . . Mechanic 1 | . . . 1 . . . . . . . . . . . . Operator 3 | . 2 . . . . . . . . 1 . . . . . Watcher 12 | . 3 . 4 . . . 3 . 1 1 . . . . . Swarmer 47 | . 9 . 7 . . . 3 11 4 . 4 4 . . 5 Cutter 1 | . . . . . . . . 1 . . . . . . . Grunt 59 | . 7 2 13 . . 1 6 9 6 1 . 2 . 7 5 Brawler 7 | . . . . . . . . . 2 . . 1 . 3 1 Duelist 4 | . . . 1 . . . . . 1 . . . . 1 1 Protector 1 | . . . . . . . . . . . . . . 1 . Sentry 23 | . . . 4 . . . 5 6 3 2 1 . . 2 . Hunter 4 | . . . . . . . 3 1 . . . . . . . Programmer 16 | . . . . . . . . 2 6 2 . . . . 6 Behemoth 1 | . . . . . . . . . . . . . . 1 . Thug 1 | . . . . . . . . . . . . 1 . . . Mutant 1 | . . . . . . . . . . . 1 . . . . Best Kill Streak 11 | . 4 2 6 . . 1 6 8 5 3 3 4 . 7 11 Combat Bots Only 8 | . 4 2 4 . . 1 5 8 4 1 3 4 . 7 8 Max Kills in Single Turn 5 | . 2 1 2 . . 1 2 2 2 1 1 1 . 3 5 Gunslinging 1 | . 1 . . . . . . . . . . . . . . Exploded 3 | . . . . . . . . 2 . . . . . 3 3 Melee 1 | . . . 1 . . . . . . 1 1 1 . 1 1 Uniques/NPCs Destroyed . | . . . . . . . . . . . . . . . . Combat | -11 -10 -10 -9 -9 -9 -8 -8 -8 -7 -6 -6 -6 -6 -5 -5 -------- Run | Yrd Mat Min Mat Min Exi Min Mat Gar Fac Fac Low Low Zio Pro Fac Hostile Shots Fired 1239 | . 120 2 84 . . 4 97 179 243 75 70 23 43 62 237 Missed 360 | . 23 1 29 . . 2 23 53 70 23 19 6 17 21 73 Damage Taken 12838 | . 909 15 696 . . 30 963 1844 2687 600 559 290 244 1209 2792 Core 2451 | . 103 . 161 . . . 165 250 365 106 72 17 56 155 1001 Absorbed by Shields 441 | . . . . . . . . 61 380 . . . . . . Ignored by Resistances 422 | . . . 4 . . . 60 119 24 18 . . . . 197 Regen/Repaired (Parts) 523 | . 53 . . . . . 91 . . 342 . . . . 37 Core Remaining (%) 56 | 100 . 58 . . . 59 . 24 47 . . . . 52 . Volleys Fired 489 | . 76 3 64 . . 3 77 80 107 9 10 9 . 18 33 Largest 2 | . 2 2 2 . . 2 2 2 2 2 2 2 . 1 2 Hottest 142 | . 104 104 104 . . 104 107 90 113 73 60 60 . 100 142 Shots Fired 887 | . 125 6 126 . . 6 154 154 202 17 20 16 . 18 43 Gun 550 | . 114 3 62 . . 3 82 141 101 8 20 16 . . . Cannon 313 | . 11 3 64 . . 3 72 . 100 9 . . . 15 36 Launcher 23 | . . . . . . . . 13 . . . . . 3 7 Special 1 | . . . . . . . . . 1 . . . . . . Kinetic 506 | . 61 3 64 . . 3 77 108 119 17 20 16 . . 18 Thermal 342 | . 64 3 62 . . 3 77 33 82 . . . . 15 3 Explosive 23 | . . . . . . . . 13 . . . . . 3 7 Electromagnetic 15 | . . . . . . . . . . . . . . . 15 Robot Hit Streak 17 | . 9 7 15 . . 2 16 17 11 7 3 5 . 7 10 Robot Miss Streak 5 | . 4 . 3 . . 1 5 4 4 3 5 1 . 2 3 Penetration Max . | . . . . . . . . . . . . . . . . Secondary Targets 9 | . 2 . . . . . . 2 2 . 2 1 . . . Max Gunslinging Chain 1 | . 1 . . . . . . 1 1 . 1 1 . . . Shots Hit Robots 606 | . 80 5 84 . . 3 106 94 129 22 13 19 . 16 35 Core Hits 383 | . 30 3 41 . . 2 80 60 69 12 8 10 . 26 42 Critical Kills 6 | . . . . . . . . . . 1 . . . 2 3 Critical Parts Destroyed 7 | . . . 1 . . . . 1 1 . 1 . . . 3 Critical Strikes 36 | . 3 . 7 . . . 4 1 6 4 1 . . 2 8 Burn 14 | . 3 . 4 . . . 4 . 3 . . . . . . Meltdown 2 | . . . . . . . . . . . . . . 2 . Destroy 9 | . . . . . . . . 1 1 . 1 . . . 6 Blast 4 | . . . 2 . . . . . 2 . . . . . . Smash 2 | . . . 1 . . . . . . 1 . . . . . Sever 5 | . . . . . . . . . . 3 . . . . 2 Melee Attacks 144 | . . . 8 . . . 1 41 18 26 6 9 . 13 22 Impact 61 | . . . 8 . . . 1 32 18 2 . . . . . Slashing 83 | . . . . . . . . 9 . 24 6 9 . 13 22 Piercing . | . . . . . . . . . . . . . . . . Sneak Attacks 3 | . . . . . . . . . . 2 . . . . 1 Combat Hostiles . | . . . . . . . . . . . . . . . . Follow-up Attacks . | . . . . . . . . . . . . . . . . Damage Inflicted 18438 | . 1100 83 1869 . . 55 2121 2315 3273 766 429 597 . 2818 3012 Guns 6039 | . 966 45 754 . . 15 955 1630 1014 88 219 353 . . . Cannons 6054 | . 132 38 926 . . 40 1166 . 2050 140 . . . 832 730 Explosions 4352 | . . . . . . . . 685 208 . . . . 1550 1909 Melee 1990 | . . . 189 . . . . . . 538 210 244 . 436 373 Ramming 3 | . 2 . . . . . . . 1 . . . . . . Kinetic 7163 | . 596 38 926 . . 40 1221 1249 2066 228 219 353 . . 227 Thermal 7146 | . 502 45 754 . . 15 900 381 1206 . . . . 2150 1193 Explosive 1877 | . . . . . . . . 685 . . . . . 232 960 Electromagnetic 259 | . . . . . . . . . . . . . . . 259 Impact 235 | . . . 189 . . . . . . 46 . . . . . Slashing 1755 | . . . . . . . . . . 492 210 244 . 436 373 Piercing . | . . . . . . . . . . . . . . . . Highest Corruption 27 | . . . . . . . . 9 27 1 1 1 1 . 9 Average Corruption 8 | . . . . . . . . 8 21 1 1 1 1 . 4 Corruption Purged 6 | . . . . . . . . . 6 . . . . . . Corruption Blocked . | . . . . . . . . . . . . . . . . Effects 168 | . . . . . . . . 73 73 7 2 9 1 . 3 Message Errors 41 | . . . . . . . . 17 18 1 . 2 . . 3 Matter Fused 45 | . . . . . . . . 24 13 3 . 4 1 . . Heat Flow Errors 21 | . . . . . . . . 4 14 . 1 2 . . . Energy Discharges 14 | . . . . . . . . 9 3 1 1 . . . . Data Loss (minor) 23 | . . . . . . . . 11 11 1 . . . . . Data Loss (major) 4 | . . . . . . . . 3 1 . . . . . . Misfires 9 | . . . . . . . . 3 5 . . 1 . . . Alerts 6 | . . . . . . . . 2 3 1 . . . . . Misdirections 2 | . . . . . . . . . 2 . . . . . . Weapon Failures 3 | . . . . . . . . . 3 . . . . . . Overload Shots . | . . . . . . . . . . . . . . . . Overflow Damage 596 | . 15 . 73 . . . 7 16 52 6 16 28 . 219 164 Projectiles 203 | . 15 . 5 . . . 7 . 2 . . . . 124 50 Explosions 203 | . . . . . . . . 16 50 . . . . 41 96 Melee 190 | . . . 68 . . . . . . 6 16 28 . 54 18 Knockbacks 59 | . 1 . 6 . . 1 30 . 17 2 . . . . 2 Impact . | . . . . . . . . . . . . . . . . Kinetic 54 | . 1 . 5 . . 1 26 . 17 2 . . . . 2 Secondary 5 | . . . 1 . . . 4 . . . . . . . . Self-Inflicted Damage 458 | . . . . . . . . 99 126 . . . . 197 36 Shots 10 | . . . . . . . . 3 2 . . . . 3 2 Rammed 2 | . 1 . . . . . . . 1 . . . . . . Targets Rammed 2 | . 1 . . . . . . . 1 . . . . . . Kicked . | . . . . . . . . . . . . . . . . Crushed . | . . . . . . . . . . . . . . . . Highest Temperature 351 | . 174 135 48 . . 27 195 240 272 54 155 122 . 20 351 Average Temperature 49 | . 42 71 12 . . 17 35 36 55 31 92 65 . 11 158 Received Heat Transfer 3133 | . 270 9 300 . . 18 441 573 550 165 42 54 . 267 444 Effects 1 | . . . . . . . . . . . . . . . 1 Shutdowns 1 | . . . . . . . . . . . . . . . 1 Siege Activations . | . . . . . . . . . . . . . . . . Robots Corrupted . | . . . . . . . . . . . . . . . . Combat Hostiles . | . . . . . . . . . . . . . . . . Parts Fried 1 | . . . . . . . . . . . . . . . 1 Impact Corruptions 2 | . . . 2 . . . . . . . . . . . . Robots Melted 2 | . . . . . . . . . . . . . . 2 . Combat Hostiles 2 | . . . . . . . . . . . . . . 2 . Parts Melted 13 | . 1 . 2 . . . 1 . 6 . . 1 . . 2 Heat Transferred 11906 | . 1545 111 1998 . . 37 2220 814 2346 . . . . 1924 911 Parts Sabotaged . | . . . . . . . . . . . . . . . . Parts Stolen . | . . . . . . . . . . . . . . . . Parts Stripped . | . . . . . . . . . . . . . . . . Power Chain Reactions 1 | . . . . . . . . . . . . . . . 1 Alert | -11 -10 -10 -9 -9 -9 -8 -8 -8 -7 -6 -6 -6 -6 -5 -5 ------- Run | Yrd Mat Min Mat Min Exi Min Mat Gar Fac Fac Low Low Zio Pro Fac Peak Influence 1929 | . 310 62 549 174 . 35 310 1929 1012 403 . . . . 1049 Initial 1012 | . . 12 . 174 . . 13 143 1012 396 . . . . 987 Average 560 | . 125 42 315 174 . 12 167 1086 762 245 . . . . 751 Maximum Alert Level 5 | . 1 . 2 . . . 1 5 3 2 . . . . 3 Low Security (%) 29 | 100 89 100 19 100 . 100 62 5 . 36 . . . . . Level 1 15 | . 10 . 47 . . . 37 3 . 46 . . . . . Level 2 17 | . . . 32 . . . . 12 30 16 . . . . 42 Level 3 26 | . . . . . . . . 28 69 . . . . . 57 Level 4 7 | . . . . . . . . 32 . . . . . . . Level 5 3 | . . . . . . . . 18 . . . . . . . High Security . | . . . . . . . . . . . . . . . . Max Security . | . . . . . . . . . . . . . . . . Squads Dispatched 30 | . 3 . 3 . . . 5 . 10 4 . . . 1 4 Investigation 10 | . 2 . 2 . . . 3 . 1 2 . . . . . Extermination 8 | . . . . . . . . . 5 1 . . . . 2 Reinforcement 8 | . 1 . 1 . . . 1 . 2 1 . . . . 2 Assault 3 | . . . . . . . . . 2 . . . . 1 . Garrison 1 | . . . . . . . 1 . . . . . . . . Intercept . | . . . . . . . . . . . . . . . . Searches Triggered 3 | . . . . . . . . . . . . . . . 3 Construction Impeded 2 | . . . . . . . . . . . . . . . 2 Haulers Reinforced 1 | . . . . . . . . . 1 . . . . . . Active Scanning Responses . | . . . . . . . . . . . . . . . . Cargo Convoy Interrupts 1 | . . . . . . . . . . . . . . . 1 Stealth | -11 -10 -10 -9 -9 -9 -8 -8 -8 -7 -6 -6 -6 -6 -5 -5 --------- Run | Yrd Mat Min Mat Min Exi Min Mat Gar Fac Fac Low Low Zio Pro Fac Distress Signals 9 | . . . 4 . . . 2 . 1 2 . . . . . Communications Jammed . | . . . . . . . . . . . . . . . . Distress Signals . | . . . . . . . . . . . . . . . . Times Spotted 258 | . 23 2 37 . . 1 28 32 35 11 7 13 2 26 41 Peak Tracking Total 14 | . 5 2 7 . . 1 6 7 4 3 3 7 2 9 14 Tactical Retreats 15 | . 2 . 1 . . . . 1 3 . 1 2 . 1 4 Traps | -11 -10 -10 -9 -9 -9 -8 -8 -8 -7 -6 -6 -6 -6 -5 -5 ------- Run | Yrd Mat Min Mat Min Exi Min Mat Gar Fac Fac Low Low Zio Pro Fac Traps Triggered 12 | . 1 . . . . . . 7 1 3 . . . . . Indirectly . | . . . . . . . . . . . . . . . . Trap Hack Attempts . | . . . . . . . . . . . . . . . . Triggered . | . . . . . . . . . . . . . . . . Disarmed . | . . . . . . . . . . . . . . . . Reprogrammed . | . . . . . . . . . . . . . . . . Reused . | . . . . . . . . . . . . . . . . Traps Extracted . | . . . . . . . . . . . . . . . . Installed . | . . . . . . . . . . . . . . . . Triggered . | . . . . . . . . . . . . . . . . Machines | -11 -10 -10 -9 -9 -9 -8 -8 -8 -7 -6 -6 -6 -6 -5 -5 ---------- Run | Yrd Mat Min Mat Min Exi Min Mat Gar Fac Fac Low Low Zio Pro Fac Machines Disabled 18 | . . . 1 . . 1 . 9 5 . 1 . . . 1 Max in Single Turn 4 | . . . 1 . . 1 . 3 4 . 1 . . . . Garrison Access 3 | . . . . . . . . . 1 2 . . . . . Garrison Relay 7 | . . . . . . . . 7 . . . . . . . Machines Repaired . | . . . . . . . . . . . . . . . . Machines Dismantled . | . . . . . . . . . . . . . . . . Machines Sabotaged . | . . . . . . . . . . . . . . . . Overloaded Fab Kills . | . . . . . . . . . . . . . . . . Hacking | -11 -10 -10 -9 -9 -9 -8 -8 -8 -7 -6 -6 -6 -6 -5 -5 --------- Run | Yrd Mat Min Mat Min Exi Min Mat Gar Fac Fac Low Low Zio Pro Fac Machines Accessed 54 | . 9 . 6 . 1 . 11 4 5 12 . 2 . . 4 Terminals 33 | . 7 . 6 . . . 6 4 3 5 . . . . 2 Fabricators 3 | . . . . . . . . . 1 2 . . . . . Repair Stations 5 | . 1 . . . . . 1 . . 2 . . . . 1 Recycling Units 4 | . 1 . . . . . 2 . . 1 . . . . . Scanalyzers 2 | . . . . . . . 1 . . . . . . . 1 Garrison Access 4 | . . . . . . . 1 . 1 2 . . . . . Total Hacks 151 | . 26 . 26 . 1 . 29 5 10 30 . 8 . . 16 Successful 81 | . 16 . 8 . 1 . 17 2 5 14 . 8 . . 10 Failed 69 | . 10 . 18 . . . 11 3 5 16 . . . . 6 Catastrophic 13 | . 1 . 1 . . . 3 2 3 2 . . . . 1 Database Lockouts 1 | . . . . . . . 1 . . . . . . . . Manual 42 | . 6 . 14 . 1 . 9 . 4 5 . . . . 3 Terminals 94 | . 21 . 26 . . . 17 5 6 11 . . . . 8 Fabricators 8 | . . . . . . . . . 3 5 . . . . . Repair Stations 17 | . 2 . . . . . 2 . . 10 . . . . 3 Recycling Units 8 | . 3 . . . . . 3 . . 2 . . . . . Scanalyzers 10 | . . . . . . . 5 . . . . . . . 5 Garrison Access 5 | . . . . . . . 2 . 1 2 . . . . . Terminal Hacks 41 | . 11 . 5 . 1 . 7 2 2 2 . 8 . . 3 Record 7 | . . . . . . . . . . . . 7 . . . Part Schematic 1 | . . . . . . . . . . . . . . . 1 Robot Analysis 8 | . 6 . 1 . . . 1 . . . . . . . . Prototype ID Bank 8 | . 2 . 2 . . . 2 . 1 1 . . . . . Open Door 1 | . . . . . . . . . . . . 1 . . . Branch Access Points 1 | . . . . . . . . . . 1 . . . . . Terminal Index 1 | . . . 1 . . . . . . . . . . . . Alert Level 2 | . . . . . . . 2 . . . . . . . . Unreport Threat 1 | . . . . . . . . . 1 . . . . . . Locate Traps 4 | . 3 . . . . . 1 . . . . . . . . Security Status 1 | . . . . . . . . . . . . . . . 1 Surveillance Status 1 | . . . . . . . . . . . . . . . 1 Zone Layout 2 | . . . 1 . . . 1 . . . . . . . . Garrison Registry 1 | . . . . . . . . 1 . . . . . . . Security Stations 1 | . . . . . . . . 1 . . . . . . . Derelict Proto ID Bank 1 | . . . . . 1 . . . . . . . . . . Fabricator Hacks 4 | . . . . . . . . . 2 2 . . . . . Network Status 3 | . . . . . . . . . 1 2 . . . . . Build 1 | . . . . . . . . . 1 . . . . . . Repair Station Hacks 12 | . 2 . . . . . 2 . . 6 . . . . 2 Scan Component 6 | . 1 . . . . . 1 . . 3 . . . . 1 Repair 6 | . 1 . . . . . 1 . . 3 . . . . 1 Recycling Unit Hacks 4 | . 1 . . . . . 1 . . 2 . . . . . Report Inventory 3 | . 1 . . . . . 1 . . 1 . . . . . Retrieve Components 1 | . . . . . . . . . . 1 . . . . . Scanalyzer 7 | . . . . . . . 3 . . . . . . . 4 Insert Component 3 | . . . . . . . 1 . . . . . . . 2 Analyze 4 | . . . . . . . 2 . . . . . . . 2 Garrison Access Hacks 4 | . . . . . . . 1 . 1 2 . . . . . Unlock Access 1 | . . . . . . . 1 . . . . . . . . Seal Access 3 | . . . . . . . . . 1 2 . . . . . Unauthorized Hacks 9 | . 2 . 3 . . . 3 . . . . . . . 1 Terminals 7 | . 2 . 3 . . . 1 . . . . . . . 1 Botnet 5 | . 1 . 2 . . . 1 . . . . . . . 1 Disrupt 1 | . 1 . . . . . . . . . . . . . . Operators 1 | . . . 1 . . . . . . . . . . . . Fabricators . | . . . . . . . . . . . . . . . . Repair Stations . | . . . . . . . . . . . . . . . . Recycling Units 2 | . . . . . . . 2 . . . . . . . . Tunnel 2 | . . . . . . . 2 . . . . . . . . Scanalyzers . | . . . . . . . . . . . . . . . . Garrison Access . | . . . . . . . . . . . . . . . . Data Cores Recovered 1 | . 1 . . . . . . . . . . . . . . Used . | . . . . . . . . . . . . . . . . Hacking Detections 34 | . 7 . 6 . . . 8 2 3 6 . . . . 2 Full Trace Events 10 | . 3 . 3 . . . 1 1 1 1 . . . . . Feedback Events . | . . . . . . . . . . . . . . . . Feedback Blocked . | . . . . . . . . . . . . . . . . Robot Schematics Acquired . | . . . . . . . . . . . . . . . . Robots Built . | . . . . . . . . . . . . . . . . Authchips . | . . . . . . . . . . . . . . . . Time . | . . . . . . . . . . . . . . . . Total Robot Build Rating . | . . . . . . . . . . . . . . . . Part Schematics Acquired 4 | . . . . . . . 1 . . . . . . . 3 Parts Built 2 | . . . . . . . . . 2 . . . . . . Authchips . | . . . . . . . . . . . . . . . . Time 106 | . . . . . . . . . 106 . . . . . . Total Part Build Rating 12 | . . . . . . . . . 12 . . . . . . Parts Repaired 6 | . 1 . . . . . 1 . . 3 . . . . 1 Time 202 | . 26 . . . . . 38 . . 88 . . . . 50 Parts Recycled . | . . . . . . . . . . . . . . . . Recycled Matter . | . . . . . . . . . . . . . . . . Retrieved Matter . | . . . . . . . . . . . . . . . . Retrieved Components 2 | . . . . . . . . . . 2 . . . . . Parts Scanalyzed 3 | . . . . . . . 1 . . . . . . . 2 Part Schematics Acquired 3 | . . . . . . . 1 . . . . . . . 2 Parts Damaged 2 | . . . . . . . 1 . . . . . . . 1 Bothacking | -11 -10 -10 -9 -9 -9 -8 -8 -8 -7 -6 -6 -6 -6 -5 -5 ------------ Run | Yrd Mat Min Mat Min Exi Min Mat Gar Fac Fac Low Low Zio Pro Fac Used RIF Installer 2 | . . . . . . . . 2 . . . . . . . Coupler Efficiency 1 | . . . . . . . . 1 . . . . . . . Robots Hacked 1 | . . . . . . . . . 1 . . . . . . Non-combat 1 | . . . . . . . . . 1 . . . . . . Combat . | . . . . . . . . . . . . . . . . Robot Hacks Applied 1 | . . . . . . . . . 1 . . . . . . ignore_repairs 1 | . . . . . . . . . 1 . . . . . . Relay Couplers Released 29 | . . . . . . . . 29 . . . . . . . Machine Destruction 29 | . . . . . . . . 29 . . . . . . . Attached 1 | . . . . . . . . . . . . . . . 1 Fabnet Peak Effective % . | . . . . . . . . . . . . . . . . Robots Rewired 4 | . . . . . . . . . . . 3 . . 1 . Allies Hacked . | . . . . . . . . . . . . . . . . Hacks Repelled . | . . . . . . . . . . . . . . . . Allies | -11 -10 -10 -9 -9 -9 -8 -8 -8 -7 -6 -6 -6 -6 -5 -5 -------- Run | Yrd Mat Min Mat Min Exi Min Mat Gar Fac Fac Low Low Zio Pro Fac Total Allies 4 | . . . . . . . . . . . 3 . . 1 . Largest Group 3 | . . . . . . . . . . . 3 3 . 1 1 Highest-Rated Group 93 | . . . . . . . . . . . 93 93 . 49 49 Highest-Rated Ally 49 | . . . . . . . . . . . 31 31 . 49 49 Total Orders . | . . . . . . . . . . . . . . . . Ally Attacks 63 | . . . . . . . . . . . . 32 . 30 1 Total Damage 932 | . . . . . . . . . . . . 401 . 512 19 Kills 7 | . . . . . . . . . . . . 4 . 3 . Allies Corrupted . | . . . . . . . . . . . . . . . . Allies Melted . | . . . . . . . . . . . . . . . . Intel | -11 -10 -10 -9 -9 -9 -8 -8 -8 -7 -6 -6 -6 -6 -5 -5 ------- Run | Yrd Mat Min Mat Min Exi Min Mat Gar Fac Fac Low Low Zio Pro Fac Robot Analysis Total 8 | . 6 . 1 . . . 1 . . . . . . . . Derelict Logs Recovered 2 | . . . . . . . . . . . 1 1 . . . Drone Launches . | . . . . . . . . . . . . . . . . Drone Recoveries . | . . . . . . . . . . . . . . . . Exploration | -11 -10 -10 -9 -9 -9 -8 -8 -8 -7 -6 -6 -6 -6 -5 -5 ------------- Run | Yrd Mat Min Mat Min Exi Min Mat Gar Fac Fac Low Low Zio Pro Fac Turns Passed 15487 | 83 1328 413 923 76 328 183 1398 2771 2850 1604 630 705 304 780 1111 Spaces Moved 7199 | 46 647 223 392 48 205 107 450 1076 1115 1018 449 395 187 386 455 Core 24 | 2 3 . . . . . . . 7 . . . . . 12 Treads 5607 | 44 619 223 392 48 205 107 450 1076 972 . 60 395 187 386 443 Legs 1242 | . 25 . . . . . . . . 828 389 . . . . Wheels 326 | . . . . . . . . . 136 190 . . . . . Hover . | . . . . . . . . . . . . . . . . Flight . | . . . . . . . . . . . . . . . . Fastest Speed 50 | 50 120 160 160 160 160 160 152 152 130 105 120 163 163 160 50 Average Speed 174 | 155 160 160 160 160 160 160 219 220 201 131 126 164 163 170 175 Slowest Speed 650 | 160 190 160 160 160 160 160 320 240 650 190 190 165 163 330 320 Overloaded Moves . | . . . . . . . . . . . . . . . . Propulsion Burnouts . | . . . . . . . . . . . . . . . . Robots Hopped . | . . . . . . . . . . . . . . . . Cave-ins Triggered 1 | . . . . . . . . 1 . . . . . . . Exploration Rate (%) 44 | 4 97 57 42 7 61 27 53 82 28 28 73 63 13 63 17 Regions Visited 15 Branch Regions 8 Pre-discovered Areas 2 | . . . . . . . 2 . . . . . . . . Known Exits Taken 2 | . . . . . . . 1 . . 1 . . . . . Unknown Exits Taken 12 | 1 1 1 1 1 1 1 . . 1 . 1 1 1 1 . Scrap Searched 9 | . . 1 . . . . . . . . 2 3 1 2 . Spaces Dug 49 | . . . 1 . . . 1 10 13 10 . 1 . 7 6 Terrain Destroyed 329 | . . . 4 . . . 2 38 52 10 . 1 . 152 70 Melee 41 | . . . 1 . . . 1 10 12 10 . 1 . . 6 Projectile 19 | . . . 3 . . . 1 1 7 . . . . 6 1 AOE 269 | . . . . . . . . 27 33 . . . . 146 63 Terrain Rammed . | . . . . . . . . . . . . . . . . Walls Destroyed . | . . . . . . . . . . . . . . . . Machines Disabled . | . . . . . . . . . . . . . . . . Actions | -11 -10 -10 -9 -9 -9 -8 -8 -8 -7 -6 -6 -6 -6 -5 -5 --------- Run | Yrd Mat Min Mat Min Exi Min Mat Gar Fac Fac Low Low Zio Pro Fac Total 8993 | 56 810 273 550 47 205 113 704 1288 1504 1226 485 425 186 442 679 Wait 832 | . 59 47 62 . . 4 146 41 204 134 2 3 . 1 129 Move 7183 | 45 646 222 391 47 204 106 449 1074 1114 1017 448 394 186 385 455 Hop . | . . . . . . . . . . . . . . . . Pick Up 56 | 2 9 1 6 . 1 . 5 3 9 8 1 2 . 3 6 Fast Attach 81 | 6 10 . 3 . . . 7 10 15 15 2 1 . 3 9 Attach 41 | 1 2 . 1 . . . 5 4 9 2 . 4 . 6 7 Detach 18 | 1 2 . . . . . 1 1 3 3 . . . 5 2 Swap 61 | . 1 . 8 . . . 7 14 14 6 3 1 . . 7 Drop 57 | 1 4 . 7 . . . 6 6 10 6 4 2 . 2 9 Fire 489 | . 76 3 64 . . 3 77 80 107 9 10 9 . 18 33 Melee 144 | . . . 8 . . . 1 41 18 26 6 9 . 13 22 Ram . | . . . . . . . . . . . . . . . . Kick . | . . . . . . . . . . . . . . . . Crush 2 | . 1 . . . . . . . 1 . . . . . . Escape Stasis 14 | . . . . . . . . 14 . . . . . . . Rewire 15 | . . . . . . . . . . . 9 . . 6 . Trap . | . . . . . . . . . . . . . . . . Miscellaneous . | . . . . . . . . . . . . . . . . Route ------- -11/Scrapyard -10/Materials (discovered 5 exits: *Mat x3 / [*Min x2]) -10/Mines (discovered 2 exits: *Mat / [Sub]) -9/Materials (discovered 2 exits: *Mat / [*Min]) -9/Mines (discovered 2 exits: *Mat / *Exi) -9/Exiles -8/Mines -8/Materials (discovered 2 exits: Fac / Gar) -8/Garrison (discovered 3 exits: *Fac x3) -7/Factory -6/Factory (discovered 2 exits: *Low x2) -6/Lower Caves -6/Lower Caves (discovered 2 exits: *Fac / [*Zio]) -6/Zion -5/Proximity Caves -5/Factory History --------- Turn | Location | Event 7 | -11/Scrapyard | Discovered new exit (range 15) 84 | -11/Scrapyard | Entered Materials 312 | -10/Materials | Build established: Mutant 314 | -10/Materials | Discovered new exit (range 11) 482 | -10/Materials | Lost 4 parts (1p1n2w) 578 | -10/Materials | Discovered new exit (range 16) 638 | -10/Materials | Discovered new exit (range 12) 1041 | -10/Materials | Discovered new exit (range 6) 1257 | -10/Materials | Discovered new exit (range 10) 1300 | -10/Materials | Repaired Sml. Storage Unit 1412 | -10/Materials | Entered Mines 1532 | -10/Mines | Discovered new exit (range 16) 1763 | -10/Mines | Discovered new exit (range 5) 1825 | -10/Mines | Entered Materials 1825 | -9/Materials | Evolved 2 slots: Utility x2 2165 | -9/Materials | Discovered new exit (range 14) 2530 | -9/Materials | Discovered new exit (range 11) 2629 | -9/Materials | Build established: Scavenger-Mutant 2748 | -9/Materials | Entered Mines 2769 | -9/Mines | Deemed a non-threat by the Exiles lab entrance 2769 | -9/Mines | Discovered new exit (range 5) 2792 | -9/Mines | Discovered new exit (range 9) 2824 | -9/Mines | Entered Exiles 2863 | -9/Exiles | Met 8R-AWN 2890 | -9/Exiles | Met EX-HEX 2933 | -9/Exiles | Met EX-BIN 2954 | -9/Exiles | Aligned with FarCom system 2956 | -9/Exiles | Given EX-Vault access code 2994 | -9/Exiles | Opened EX-Vault 3000 | -9/Exiles | Found YOLO Cannon 3035 | -9/Exiles | Warned to stay clear of 0b10 Research branches 3078 | -9/Exiles | Met EX-DEC 3134 | -9/Exiles | Discovered new exit (range 12) 3152 | -9/Exiles | Left Exiles lab with YOLO Cannon 3152 | -9/Exiles | Entered Mines 3311 | -8/Mines | Discovered new exit (range 16) 3335 | -8/Mines | Entered Materials 3335 | -8/Materials | Evolved 2 slots: Utility x2 4204 | -8/Materials | Repaired Flak Cannon 4321 | -8/Materials | Discovered new exit (range 16) 4434 | -8/Materials | Build established: Mutant 4645 | -8/Materials | Garrison activated, responded to threat 4667 | -8/Materials | Central database locked down 4729 | -8/Materials | Identified exit to Garrison 4733 | -8/Materials | Entered Garrison 4779 | -8/Garrison | Triggered checkpoint 4807 | -8/Garrison | Garrison Relay disabled 4968 | -8/Garrison | Garrison Relay disabled 4968 | -8/Garrison | Garrison Relay disabled 4968 | -8/Garrison | Garrison Relay disabled 5015 | -8/Garrison | Lost 3 parts (1p2u) 5247 | -8/Garrison | Triggered checkpoint 5251 | -8/Garrison | Triggered checkpoint 5269 | -8/Garrison | Crushed by falling debris 5299 | -8/Garrison | Destroyed 8 combat bots 5301 | -8/Garrison | Build established: Scavenger-Mutant 5308 | -8/Garrison | Lost 5 parts (1n3u1w) 5356 | -8/Garrison | Discovered new exit (range 10) 5528 | -8/Garrison | Core integrity fell below 50% 5566 | -8/Garrison | Garrison Relay disabled 5636 | -8/Garrison | Discovered new exit (range 9) 5655 | -8/Garrison | Learned Factory security intel 5671 | -8/Garrison | Triggered checkpoint 6075 | -8/Garrison | Triggered checkpoint 6251 | -8/Garrison | Discovered new exit (range 14) 6313 | -8/Garrison | Triggered checkpoint 6364 | -8/Garrison | Garrison Relay disabled 6659 | -8/Garrison | Garrison Relay disabled 7002 | -8/Garrison | Discovered new exit (range 79) 7002 | -8/Garrison | Discovered new exit (range 38) 7002 | -8/Garrison | Discovered new exit (range 17) 7224 | -8/Garrison | Installed Relay Interface Framework 7435 | -8/Garrison | Expanded RIF knowledge: Coupler Efficiency 7504 | -8/Garrison | Entered Factory 7504 | -7/Factory | Evolved 2 slots: Utility x2 7737 | -7/Factory | Fabricated Adv. Shield Generator (x2) 8495 | -7/Factory | Build established: Mutant 8704 | -7/Factory | First assault squad dispatched 9021 | -7/Factory | System corruption reached 10% 9084 | -7/Factory | Lost 14 parts (1p1n9u3w) 10132 | -7/Factory | Lost 3 parts (1n1u1w) 10134 | -7/Factory | Core integrity fell below 50% 10348 | -7/Factory | Discovered new exit (range 5) 10354 | -7/Factory | Entered another Factory area 10354 | -6/Factory | Evolved 2 slots: Propulsion x1, Utility x1 11145 | -6/Factory | Identified exit to Lower Caves 11297 | -6/Factory | Build established: Assassin 11435 | -6/Factory | Repaired Structural Scanner 11461 | -6/Factory | Repaired Arm. Leg 11735 | -6/Factory | Build established: Hacker-Assassin 11896 | -6/Factory | Repaired Flexi-carbon Leg 11958 | -6/Factory | Entered Lower Caves 11960 | -6/Lower Caves | Attracted the attention of an 0b10 checkpoint 12233 | -6/Lower Caves | Encountered a Warlord checkpoint 12267 | -6/Lower Caves | Build established: Hacker-Mutant 12419 | -6/Lower Caves | Learned Factory terminal intel 12449 | -6/Lower Caves | Attacked by a delusional Derelict stockpiling Unaware 12527 | -6/Lower Caves | Discovered new exit (range 11) 12588 | -6/Lower Caves | Entered another Lower Caves area 12588 | -6/Lower Caves | Accompanied by 3 allies 12638 | -6/Lower Caves | Discovered new exit (range 22) 12648 | -6/Lower Caves | Lost 3 allies 12889 | -6/Lower Caves | Learned Factory stockpile data 12889 | -6/Lower Caves | Learned Extension stockpile data 12889 | -6/Lower Caves | Learned Extension security intel 13281 | -6/Lower Caves | Discovered new exit (range 6) 13293 | -6/Lower Caves | Entered Zion 13342 | -6/Zion | Discovered new exit (range 22) 13491 | -6/Zion | Given A8's code to call for help 13522 | -6/Zion | System corruption cleaned by Quarantine Array 13528 | -6/Zion | RIF detected upon attempting to enter Zion 13528 | -6/Zion | Attacked by Zionites 13528 | -6/Zion | Spotted PD-SVL(B) 13528 | -6/Zion | Spotted NF-MY4(B) 13597 | -6/Zion | Entered Proximity Caves 13698 | -5/Proximity Caves | Attracted the attention of an 0b10 outpost 13701 | -5/Proximity Caves | Spotter reported a threat 13748 | -5/Proximity Caves | Destroyed 7 combat bots 13754 | -5/Proximity Caves | Spotter reported a threat 13807 | -5/Proximity Caves | Spotter reported a threat 13860 | -5/Proximity Caves | Spotter reported a threat 13906 | -5/Proximity Caves | Spotter reported a threat 13913 | -5/Proximity Caves | Spotter reported a threat 13966 | -5/Proximity Caves | Spotter reported a threat 14043 | -5/Proximity Caves | Spotter reported a threat 14211 | -5/Proximity Caves | Spotted B-75 Beast 14225 | -5/Proximity Caves | Destroyed B-75 Beast 14252 | -5/Proximity Caves | Lost 4 parts (1p1n2u) 14336 | -5/Proximity Caves | Discovered new exit (range 20) 14377 | -5/Proximity Caves | Entered Factory 14377 | -5/Factory | Accompanied by 1 ally 14377 | -5/Factory | Evolved 2 slots: Utility x2 14379 | -5/Factory | Loaded intel: 25 terminal locations 14429 | -5/Factory | Found Mni. Smartbomb Launcher 14432 | -5/Factory | Found Mni. Smartbomb Launcher 14517 | -5/Factory | Repaired Power Sword 14677 | -5/Factory | Search patrols dispatched 14821 | -5/Factory | Build established: Scavenger-Assassin 14977 | -5/Factory | Search patrols dispatched 14983 | -5/Factory | Lost 4 parts (3n1w) 15277 | -5/Factory | Search patrols dispatched 15478 | -5/Factory | Cargo convoy interrupted 15481 | -5/Factory | Core integrity fell below 50% 15484 | -5/Factory | Core integrity fell below 20% 15488 | -5/Factory | Destroyed by A-27 Freighter with PD Laser Last Messages --------------- Relay Coupler [NC] destroyed. Slug penetrates R-10 Processor. Slug penetrates Wall. Penetrated by Slug. K-01 Serf collects debris. U-05 Engineer lays Concrete. Acquired 17 matter. U-05 Engineer lays Concrete. K-01 Serf collects debris. U-05 Engineer lays Concrete. EM Disruption Field destroyed. U-05 Engineer lays Concrete. Penetrated by Slug. U-05 Engineer lays Concrete. D>3JNGPOOA&:AB7EBQLFHDCD U-05 Engineer lays Concrete. K-01 Serf collects debris. U-05 Engineer lays Concrete. K-01 Serf collects debris. U-05 Engineer lays Concrete. Map ----- +----------------------------------------------------+ | ?????????????????????????????????????????????????? | | ?????????????????????????????????????????????????? | | ?????????????????????????????????????????????????? | | ??????????????????????????????????????????"""""??? | | ??????????????????????????????????????????""T""??? | | ?????????????????????????????????????????????????? | | ?????????????????????????????????????????????????? | | ?????????????????????????????????????????????????? | | ?????????????????????????????????????????????????? | | ?????????????????????????????????????????????????? | | ?????????????????????????????????????????????????? | | ??????????????????? ?????????????????????????????? | | ???????????????# ############## ?????????????? | | ???????????????# ############## ?????????????? | | ???????????????# # !!! # ?????????????? | | ???????????????# # """ !! # ?????????????? | | ??????????"""" # + """ !! # ????????????? | | ?????????? + u # """ #########?????? | | ?????????? #u # #########?????? | | ? #### w k """ """ # ##?????? | | ?############# # """ """ + " ##????? | | ? A k# """ """ # " ##????? | | ? u k ; # " ###### | | ? % ; # " ###### | | ? i% %; = # " # | | ? %%; @ # " + | | ????#########;;; ;############# " ""# | | ???? ## #### " ""###+###+# | | ????????""" " #### " T"## | | ?????????"" = " xx ] #### ""##= """" | | ?????????"" "" ! #### ""## """" | | ?????????"" "% hh %! ## ## """" | | ?????????"" #"x h p!% ########## """" | | ?????????"" # ! p ########## | | ??????????" ? # hh "!!! #?????########### | | ????????? ?? # "w"###### # #???????### | | ??????????#???## " ######## ##????????## | | ??????????????## ?????????###?????????## """ | | ??????????????## ?????????????????????## """ | | ??????????????## ?????????????????????## """ | | ??????????????## ?????????????????????## | | ???????????????# ?????????????????????## """ | | ??????????????? / ???w??????????????????## """ | | ?????????????? ???????????????????????## """ | | ?????????????"""" "???????????????????????## | | ??????????????????????????????????????????## """ | | ??????????????????????????????????????????## """ | | ??????????????????????????????????????????## ??"" | | ??????????????????????????????????????????## ??? | | ????????????????????????????????????????????????" | +----------------------------------------------------+ Best States ------------- Heat Dissipation 76 Energy Generation 19 Energy Capacity 315 Matter Stores 300 Matter Capacity 300 Sight Range 22 Terrain Scan Density 10 Armor Coverage 450 Resistance: KI 20 Resistance: TH 25 Resistance: EM 25 Evasion (%) 55 Target Analysis 6 Core Analysis 6 Armor Integrity Analysis 30 Recoil Reduction 6 Offensive Hacking 12 Defensive Hacking 12 Item Schematics ----------------- Flak Cannon | -8/Materials | Scanalyzed Nova Cannon | -5/Factory | Hacked Power Sword | -5/Factory | Scanalyzed Mni. Smartbomb Launcher | -5/Factory | Scanalyzed Robot Schematics ------------------ None Fabricated ------------ Adv. Shield Generator | x2 | -7/Factory | Preloaded Alien Tech Used ----------------- None Achievements -------------- None Challenges ------------ None Game ------ Seed BlastZhirovFlamer Manual? 0 Play Time 01:59:43 Cumulative 97.0 hours Start 2024.09.02 @ 18:33:12 End 2024.09.02 @ 20:32:46 Sessions 1 Manual Loads 0 Difficulty Rogue Special Mode None Game No. 88 Rogue 88 Adventurer 0 Explorer 0 Win Type - Total 0 Types 0/0/0/0/0/0/0/0/0 Lore% 36 Gallery% 50 Achievement% 38 Wizard Run 0 Options --------- Layout 2 ASCII 0 Keyboard 0 Movement Arrows Keybinds 0 Fullscreen 1 Font 16/Terminus Map View 55x47 Zoom Use 0% Tactical HUD 0 Map Filters NONE Filters NONE Steam 1 RUN: 38fda8bf-261a-43a2-b916-e7be47d02eb6